bitfinex/quotes_SOLUSD_20250708
["timestamp","ask_amount","ask_price","bid_price","bid_amount"]
[1751992346138,1e-08,150.59,150.58,94.42622269]
[1751992348125,1e-08,150.59,150.58,68.42622269]
[1751992348343,1e-08,150.59,150.58,74.42702269]
[1751992348741,1e-08,150.59,150.58,40.18702269]
[1751992348944,1e-08,150.59,150.58,74.44702269]
[1751992349140,1e-08,150.62,150.61,26.0]
[1751992349341,1e-08,150.62,150.61,69.21558566]
[1751992350046,1e-08,150.62,150.61,75.85525102]
[1751992352938,1e-08,150.62,150.61,72.88561597]
[1751992354540,1e-08,150.62,150.61,99.04701544]
[1751992355549,1e-08,150.62,150.61,93.12106483]
[1751992356148,1e-08,150.62,150.61,51.28931422]
[1751992356363,1e-08,150.62,150.61,59.58931422]
[1751992356558,1e-08,150.62,150.61,12.56561597]
[1751992356763,1e-08,150.62,150.61,46.86561597]
[1751992357334,1e-08,150.62,150.56,6.64187035]
[1751992357335,5.92595062,150.62,150.56,6.64187035]
[1751992357670,12.44995062,150.62,150.58,5.92595061]
[1751992357844,6.52400001,150.62,150.59,34.28]
[1751992358053,7.35390307,150.62,150.59,34.28]
[1751992358252,7.35390307,150.62,150.59,40.20595061]
[1751992358454,7.35390307,150.62,150.6,34.3]
[1751992359143,13.99326713,150.62,150.59,5.92595061]
[1751992359346,19.91921774,150.62,150.6,34.3]
[1751992359551,6.52400001,150.62,150.6,34.3]
[1751992359775,6.52400001,150.62,150.59,5.92595061]
[1751992359946,6.52400001,150.62,150.6,34.3]
[1751992360975,19.91912827,150.62,150.6,34.3]
[1751992361150,7.54335061,150.61,150.59,34.28]
[1751992361350,19.13343389,150.6,150.55,0.03]
[1751992361558,5.92595061,150.59,150.56,34.28]
[1751992362340,6.756019,150.59,150.56,34.28]
[1751992362755,6.756019,150.59,150.55,5.95595061]
[1751992363044,5.92595061,150.57,150.55,0.03]
[1751992363374,5.92595061,150.58,150.55,34.35]
[1751992363743,6.756019,150.59,150.55,34.35]
[1751992363948,0.83006839,150.59,150.55,40.27595061]
[1751992364347,6.756019,150.59,150.55,40.27595061]
[1751992365378,6.756019,150.59,150.55,46.91824407]
[1751992366179,6.756019,150.59,150.55,40.99229346]
[1751992366480,147.5,150.6,150.57,5.92595061]
[1751992366648,147.5,150.6,150.58,34.32]
[1751992367047,147.5,150.6,150.58,40.24595061]
[1751992367475,147.5,150.6,150.58,34.32]
[1751992367941,154.14017594,150.6,150.58,34.32]
[1751992368183,160.06612655,150.6,150.58,34.32]
[1751992369251,147.5,150.6,150.58,34.32]
[1751992370649,153.42595061,150.6,150.55,0.03]
[1751992370855,40.12165061,150.56,150.55,0.03]
[1751992371059,32.64319404,150.53,150.52,0.03]
[1751992371280,70.42308432,150.53,150.44,0.03]
[1751992371581,12.10065061,150.48,150.44,0.03]
[1751992371753,25.30521734,150.48,150.44,0.03]
[1751992371952,26.0,150.45,150.44,0.03]
[1751992372150,45.12752463,150.45,150.44,0.03]
[1751992372356,63.76724961,150.45,150.44,0.03]
[1751992372587,51.40644028,150.45,150.44,0.03]
[1751992372782,26.83084081,150.45,150.44,0.03]
[1751992372960,0.83084081,150.45,150.44,0.03]
[1751992373170,0.83078559,150.46,150.44,0.03]
[1751992373564,0.83078559,150.46,150.44,8.94641123]
[1751992373764,8.91641123,150.46,150.44,0.03]
[1751992373960,26.83084081,150.45,150.44,0.03]
[1751992374182,35.74725204,150.45,150.44,0.03]
[1751992374867,26.83084081,150.45,150.44,0.03]
[1751992375066,35.74725204,150.45,150.44,0.03]
[1751992375281,42.39397852,150.45,150.44,0.03]
[1751992376188,35.74725204,150.45,150.44,0.03]
[1751992376375,0.83084081,150.45,150.44,0.03]
[1751992376566,16.3930363,150.47,150.44,0.03]
[1751992376781,0.83073037,150.47,150.44,0.03]
[1751992376962,33.00537517,150.48,150.45,8.91641123]
[1751992377299,26.0,150.48,150.45,8.91641123]
[1751992377580,0.83056478,150.5,150.44,0.03]
[1751992377962,16.39156472,150.5,150.46,8.91641123]
[1751992378160,156.41641123,150.49,150.45,8.91641123]
[1751992378381,9.7470864,150.48,150.44,0.03]
[1751992378782,8.91641123,150.46,150.44,0.03]
[1751992379084,0.83067517,150.48,150.44,0.03]
[1751992379273,16.39259697,150.48,150.44,0.03]
[1751992380178,8.91641123,150.47,150.44,0.03]
[1751992380482,9.74719682,150.46,150.44,0.03]
[1751992380865,8.91641123,150.45,150.44,0.03]
[1751992381582,15.56313771,150.45,150.44,0.03]
[1751992382788,41.56313771,150.45,150.44,0.03]
[1751992383464,60.21278657,150.45,150.44,0.03]
[1751992383871,102.03872738,150.45,150.44,0.03]
[1751992384388,48.70907852,150.45,150.44,0.03]
[1751992384789,47.87823771,150.45,150.44,0.03]
[1751992385771,67.35872738,150.45,150.44,0.03]
[1751992387202,41.35872738,150.45,150.44,0.03]
[1751992388770,41.35872738,150.45,150.44,1e-08]
[1751992390496,46.25744886,150.42,150.41,0.03]
[1751992390704,90.6848666,150.42,150.41,0.03]
[1751992390952,90.6848666,150.42,150.39,0.1]
[1751992391085,90.6848666,150.42,150.39,1e-08]
[1751992391086,17.83282246,150.4,150.39,1e-08]
[1751992391273,53.36393948,150.4,150.39,1e-08]
[1751992391470,44.44752825,150.4,150.39,1e-08]
[1751992391676,63.09717711,150.4,150.39,1e-08]
[1751992392101,42.18005319,150.4,150.39,1e-08]
[1751992392407,43.96252451,150.4,150.39,1e-08]
[1751992392571,51.28641825,150.4,150.39,1e-08]
[1751992392771,35.04611328,150.4,150.39,1e-08]
[1751992393199,51.28727559,150.4,150.39,1e-08]
[1751992393377,23.7212155,150.4,150.39,1e-08]
[1751992393586,51.13646442,150.4,150.39,1e-08]
[1751992393791,33.48005319,150.4,150.39,1e-08]
[1751992393994,42.39646442,150.4,150.39,1e-08]
[1751992394189,33.48005319,150.4,150.39,1e-08]
[1751992394389,49.71712034,150.4,150.39,1e-08]
[1751992395102,34.15177294,150.4,150.39,1e-08]
[1751992395522,49.71712034,150.4,150.39,1e-08]
[1751992397189,40.80070911,150.4,150.39,1e-08]
[1751992397495,34.15177294,150.4,150.39,1e-08]
[1751992397703,33.48005319,150.4,150.39,1e-08]
[1751992398020,49.72162337,150.4,150.39,1e-08]
[1751992398895,84.48162337,150.4,150.39,1e-08]
[1751992402104,84.48162337,150.4,150.37,0.1]
[1751992402105,18.64964886,150.39,150.37,0.1]
[1751992402318,18.64964886,150.39,150.33,0.03]
[1751992402319,26.0,150.34,150.33,0.03]
[1751992402494,42.24157018,150.34,150.33,0.03]
[1751992402700,61.72266775,150.34,150.33,0.03]
[1751992402923,61.72266775,150.34,150.33,1e-08]
[1751992402924,52.80625652,150.34,150.33,1e-08]
[1751992403110,100.19734957,150.34,150.33,1e-08]
[1751992403432,81.54770071,150.34,150.33,1e-08]
[1751992404716,40.11611099,150.34,150.33,1e-08]
[1751992404921,7.32515895,150.34,150.33,1e-08]
[1751992405600,7.32515895,150.34,150.33,8.93163632]
[1751992406220,0.83111702,150.4,150.33,8.93163632]
[1751992406418,7.36008945,150.39,150.33,1e-08]
[1751992406623,7.36008945,150.38,150.36,8.93163631]
[1751992406798,7.36008945,150.37,150.36,8.93163631]
[1751992407830,7.36008945,150.37,150.36,15.58234128]
[1751992408627,7.36008945,150.37,150.36,6.65070497]
[1751992408818,7.36008945,150.37,150.34,6.65158972]
[1751992409133,7.36751593,150.36,150.35,8.93163631]
[1751992409312,7.36751593,150.36,150.35,15.58278363]
[1751992410030,7.36751593,150.36,150.35,6.65114732]
[1751992410230,7.36751593,150.36,150.35,15.58278363]
[1751992411536,7.36751593,150.36,150.34,8.93163631]
[1751992411836,0.83117228,150.39,150.35,8.93163631]
[1751992412132,7.38378852,150.38,150.36,8.93163631]
[1751992412335,7.38378852,150.37,150.33,6.65189035]
[1751992412523,7.4806329,150.39,150.36,8.93163631]
[1751992412715,7.3926128,150.38,150.36,8.93163631]
[1751992412915,7.3926128,150.37,150.36,8.93163631]
[1751992413316,7.3926128,150.37,150.35,8.93163631]
[1751992413516,7.3926128,150.36,150.34,8.93163631]
[1751992413731,0.83117228,150.39,150.34,6.65154289]
[1751992413732,7.3926128,150.35,150.34,6.65154289]
[1751992414227,7.3926128,150.35,150.33,1e-08]
[1751992414533,7.3926128,150.34,150.33,6.65192744]
[1751992414836,7.3926128,150.34,150.33,15.58356375]
[1751992416829,7.3926128,150.34,150.33,6.65192744]
[1751992417141,7.3926128,150.34,150.33,15.58356375]
[1751992418150,7.3926128,150.34,150.33,8.93163632]
[1751992418533,7.3926128,150.34,150.33,15.58366851]
[1751992419121,7.3926128,150.34,150.33,34.23331737]
[1751992419321,0.06,150.37,150.33,50.86339785]
[1751992419633,0.06,150.37,150.36,8.93163631]
[1751992419841,0.06,150.37,150.36,43.61163631]
[1751992420218,7.49596947,150.37,150.36,50.26234128]
[1751992420419,0.06,150.37,150.36,50.26234128]
[1751992421116,0.06,150.37,150.36,41.33070497]
[1751992421318,0.06,150.37,150.36,50.26234128]
[1751992421714,0.06,150.37,150.36,41.33070497]
[1751992421948,0.06,150.37,150.36,50.26234128]
[1751992422159,7.49741626,150.37,150.36,8.93163631]
[1751992422326,7.49741626,150.37,150.36,15.58234128]
[1751992422522,0.06,150.37,150.36,15.58234128]
[1751992423018,0.06,150.37,150.36,34.23199014]
[1751992425128,0.06,150.37,150.36,15.58234128]
[1751992426632,0.06,150.37,150.36,6.65070497]
[1751992426948,0.06,150.37,150.36,15.58234128]
[1751992427333,0.06,150.37,150.35,6.65102553]
[1751992427562,0.06,150.37,150.36,8.93163631]
[1751992428947,0.06,150.37,150.36,15.58234128]
[1751992429649,0.06,150.37,150.35,6.65098214]
[1751992429956,0.06,150.37,150.36,8.93163631]
[1751992430744,0.06,150.37,150.36,15.58234128]
[1751992431266,0.06,150.37,150.36,6.65070497]
[1751992431433,0.06,150.37,150.36,15.58234128]
[1751992432660,0.06,150.37,150.35,8.93163631]
[1751992432865,0.06,150.37,150.34,50.24306297]
[1751992433859,7.51719722,150.37,150.34,50.24306297]
[1751992434056,7.51719722,150.37,150.33,1e-08]
[1751992434367,0.89128283,150.37,150.33,43.57163632]
[1751992434570,9.82291914,150.37,150.33,8.93163632]
[1751992435259,9.82291914,150.37,150.33,15.58354651]
[1751992436843,0.89128283,150.37,150.34,8.93163631]
[1751992437154,0.06,150.37,150.35,8.93163631]
[1751992437367,0.06,150.37,150.36,8.93163631]
[1751992437766,0.06,150.37,150.35,34.64]
[1751992437965,0.06,150.37,150.36,8.93163631]
[1751992438140,0.06,150.37,150.35,34.64]
[1751992439263,0.06,150.37,150.34,8.93163631]
[1751992439438,0.06,150.37,150.33,1e-08]
[1751992439633,8.93163631,150.36,150.33,1e-08]
[1751992439836,0.83139341,150.35,150.33,1e-08]
[1751992440037,9.82291914,150.37,150.33,1e-08]
[1751992440234,8.93163631,150.36,150.33,1e-08]
[1751992440477,157.26302972,150.35,150.33,1e-08]
[1751992440769,147.5,150.35,150.33,1e-08]
[1751992440944,163.89176619,150.34,150.33,1e-08]
[1751992441353,154.96012988,150.34,150.33,1e-08]
[1751992441554,154.9559202,150.34,150.33,1e-08]
[1751992442355,147.5,150.34,150.33,8.93163632]
[1751992442557,0.06,150.37,150.33,8.93163632]
[1751992442759,4.97087495,150.36,150.34,6.65156896]
[1751992443044,4.97087495,150.35,150.33,6.65184094]
[1751992443266,14.99813378,150.37,150.33,1e-08]
[1751992443489,14.99813378,150.37,150.34,8.93163631]
[1751992443490,4.97082884,150.36,150.34,8.93163631]
[1751992443770,0.89128283,150.37,150.34,8.93163631]
[1751992444067,4.9708854,150.36,150.34,8.93163631]
[1751992444254,4.9708854,150.35,150.34,8.93163631]
[1751992444863,0.89128283,150.37,150.34,8.93163631]
[1751992445778,0.89128283,150.37,150.33,6.65193595]
[1751992445946,0.89128283,150.37,150.34,8.93163631]
[1751992447266,0.06,150.37,150.36,8.93163631]
[1751992447452,5.03064805,150.37,150.36,8.93163631]
[1751992448067,5.03064805,150.37,150.35,34.66]
[1751992448254,0.06,150.37,150.36,8.93163631]
[1751992448444,0.06,150.37,150.35,43.59163631]
[1751992448445,5.03310401,150.37,150.35,43.59163631]
[1751992448641,4.97310401,150.36,150.33,8.93163632]
[1751992448865,4.97310401,150.35,150.33,8.93163632]
[1751992449063,4.97310401,150.34,150.33,1e-08]
[1751992449263,4.97310401,150.34,150.33,8.93163632]
[1751992449460,4.97310401,150.34,150.33,1e-08]
[1751992449765,12.436306,150.34,150.33,1e-08]
[1751992450159,4.97310401,150.34,150.33,1e-08]
[1751992451965,13.26557606,150.34,150.33,1e-08]
[1751992452559,5.80455272,150.34,150.33,8.93163632]
[1751992452760,4.97310401,150.34,150.33,8.93163632]
[1751992453166,4.97310401,150.34,150.33,1e-08]
[1751992454077,4.97310401,150.34,150.33,8.93163632]
[1751992454776,0.06,150.37,150.33,8.93163632]
[1751992454987,0.06,150.37,150.36,8.93163631]
[1751992455278,5.0332729,150.37,150.36,8.93163631]
[1751992455880,5.0332729,150.37,150.35,8.93163631]
[1751992456178,5.80468728,150.36,150.33,8.93163632]
[1751992456369,4.97334916,150.35,150.33,8.93163632]
[1751992456572,4.97334916,150.34,150.33,8.93163632]
[1751992456878,0.83133812,150.36,150.33,5.95290626]
[1751992457058,4.97374173,150.35,150.33,6.6520175]
[1751992457261,0.06,150.37,150.34,5.95290625]
[1751992457587,0.06,150.37,150.36,5.95290625]
[1751992457765,12.49492744,150.37,150.36,5.95290625]
[1751992457978,5.0335722,150.37,150.35,5.95290625]
[1751992458178,4.9735722,150.36,150.35,5.95290625]
[1751992458374,4.9735722,150.36,150.34,5.95290625]
[1751992458679,4.9735722,150.35,150.34,5.95290625]
[1751992458888,4.9735722,150.35,150.34,8.92812568]
[1751992460277,4.9735722,150.35,150.33,8.92812569]
[1751992460581,4.9735722,150.34,150.33,1e-08]
[1751992460884,4.9735722,150.34,150.33,8.92812569]
[1751992461268,4.9735722,150.34,150.33,1e-08]
[1751992463378,4.9735722,150.34,150.33,8.92812569]
[1751992463591,4.9735722,150.34,150.33,1e-08]
[1751992463789,4.9735722,150.34,150.33,8.92812569]
[1751992463959,4.9735722,150.34,150.33,1e-08]
[1751992464159,4.9735722,150.34,150.33,8.92812569]
[1751992466185,4.9735722,150.34,150.33,1e-08]
[1751992466396,4.9735722,150.34,150.33,8.92812569]
[1751992467992,4.9735722,150.34,150.33,1e-08]
[1751992469672,4.97128587,150.34,150.33,1e-08]
[1751992470266,12.43130069,150.34,150.33,1e-08]
[1751992471587,19.08289041,150.34,150.33,1e-08]
[1751992476874,28.8424648,150.34,150.33,1e-08]
[1751992480481,28.9024648,150.34,150.33,1e-08]
[1751992481090,25.93004439,150.34,150.33,1e-08]
[1751992481487,19.97433912,150.34,150.33,1e-08]
[1751992481801,0.06,150.34,150.33,5.95570528]
[1751992482185,0.06,150.34,150.33,12.44670528]
[1751992483282,0.06,150.34,150.33,19.09873747]
[1751992484604,0.06,150.34,150.33,5.95570528]
[1751992485194,5.0369743,150.34,150.33,5.95570528]
[1751992485699,0.06,150.34,150.33,5.95570528]
[1751992489712,0.06,150.34,150.33,12.60773747]
[1751992496211,0.06,150.34,150.33,5.95570528]
[1751992496516,0.06,150.34,150.33,12.60773747]
[1751992496727,0.06,150.34,150.33,5.95570528]
[1751992496889,5.03625678,150.34,150.33,40.37570528]
[1751992497590,5.03625678,150.34,150.33,1e-08]
[1751992497791,12.50076818,150.34,150.33,1e-08]
[1751992498190,12.50076818,150.34,150.33,5.95570528]
[1751992499311,5.03625678,150.34,150.33,1e-08]
[1751992499516,5.03625678,150.34,150.33,5.95570528]
[1751992499809,5.03625678,150.34,150.33,1e-08]
[1751992499810,19.15234654,150.34,150.33,1e-08]
[1751992500019,19.98379525,150.34,150.33,1e-08]
[1751992500393,25.93950052,150.34,150.33,1e-08]
[1751992502725,44.58914938,150.34,150.33,1e-08]
[1751992504520,79.00914938,150.34,150.33,1e-08]
[1751992504709,18.64964886,150.33,150.32,0.1]
[1751992504911,37.04611095,150.33,150.32,0.1]
[1751992505422,43.69814314,150.33,150.32,0.1]
[1751992506196,43.69814314,150.33,150.3,1e-08]
[1751992506197,26.0,150.31,150.3,1e-08]
[1751992506434,73.69237148,150.31,150.3,1e-08]
[1751992506612,98.29772561,150.31,150.3,1e-08]
[1751992506926,39.27237148,150.31,150.3,1e-08]
[1751992507297,12.44075682,150.31,150.3,5.95570528]
[1751992507498,4.97625678,150.31,150.3,5.95570528]
[1751992507718,4.97625678,150.31,150.3,1e-08]
[1751992507916,11.62917408,150.31,150.3,1e-08]
[1751992508109,51.04201315,150.31,150.3,1e-08]
[1751992508316,51.87362781,150.31,150.3,1e-08]
[1751992509025,44.52327667,150.31,150.3,1e-08]
[1751992510118,38.5675714,150.31,150.3,1e-08]
[1751992510417,44.52327667,150.31,150.3,1e-08]
[1751992511618,79.00327667,150.31,150.3,1e-08]
[1751992512330,18.64964886,150.29,150.28,1e-08]
[1751992512519,72.35047004,150.29,150.28,1e-08]
[1751992513328,66.39476477,150.29,150.28,1e-08]
[1751992513533,72.35047004,150.29,150.28,1e-08]
[1751992513729,166.14964886,150.28,150.27,1e-08]
[1751992513931,192.79269011,150.28,150.27,1e-08]
[1751992515338,227.29269011,150.28,150.27,1e-08]
[1751992515518,221.33698484,150.28,150.27,1e-08]
[1751992515836,166.58763598,150.28,150.27,1e-08]
[1751992516047,159.93339058,150.28,150.27,1e-08]
[1751992516207,159.13050218,150.28,150.27,1e-08]
[1751992516519,37.63050218,150.28,150.27,1e-08]
[1751992517031,37.6053566,150.28,150.27,1e-08]
[1751992517233,43.56106187,150.28,150.27,1e-08]
[1751992517608,37.6053566,150.28,150.27,1e-08]
[1751992518108,43.56106187,150.28,150.27,1e-08]
[1751992518521,50.98414163,150.28,150.27,1e-08]
[1751992519520,30.9511112,150.28,150.27,1e-08]
[1751992519717,37.6053566,150.28,150.27,1e-08]
[1751992520923,38.43713727,150.28,150.27,1e-08]
[1751992522438,51.80999205,150.28,150.27,1e-08]
[1751992523028,44.45964091,150.28,150.27,1e-08]
[1751992523233,25.80999205,150.28,150.27,1e-08]
[1751992523540,60.36999205,150.28,150.27,1e-08]
[1751992523729,25.80999205,150.28,150.27,1e-08]
[1751992524117,25.86999205,150.28,150.27,1e-08]
[1751992524440,25.86385993,150.28,150.27,1e-08]
[1751992525636,19.90815466,150.28,150.27,1e-08]
[1751992525839,25.86385993,150.28,150.27,1e-08]
[1751992526077,19.89526542,150.28,150.27,1e-08]
[1751992526344,7.54602607,150.28,150.27,1e-08]
[1751992526545,32.7142454,150.28,150.27,1e-08]
[1751992527045,26.06,150.28,150.27,5.95570528]
[1751992527245,33.54602607,150.28,150.27,5.95570528]
[1751992527558,33.54602607,150.28,150.27,1e-08]
[1751992529744,38.48510647,150.28,150.27,1e-08]
[1751992529946,44.44081174,150.28,150.27,1e-08]
[1751992530943,25.84864822,150.28,150.27,1e-08]
[1751992531243,44.49829708,150.28,150.27,1e-08]
[1751992532619,60.48864822,150.28,150.27,1e-08]
[1751992532849,51.84864822,150.28,150.27,1e-08]
[1751992533421,44.49829708,150.28,150.27,1e-08]
[1751992536226,18.64964886,150.24,150.23,0.1]
[1751992536426,18.64964886,150.24,150.23,1e-08]
[1751992536427,84.99599543,150.24,150.23,1e-08]
[1751992536749,79.04029016,150.24,150.23,1e-08]
[1751992537524,73.08458489,150.24,150.23,1e-08]
[1751992537838,79.04029016,150.24,150.23,1e-08]
[1751992539653,26.0,150.21,150.19,0.1]
[1751992539834,179.32878944,150.2,150.19,0.1]
[1751992540151,184.45227101,150.2,150.19,0.1]
[1751992540326,159.84691688,150.2,150.19,0.1]
[1751992540526,165.80262215,150.2,150.19,0.1]
[1751992540748,172.46041176,150.2,150.19,0.1]
[1751992540949,166.50470649,150.2,150.19,0.1]
[1751992541548,172.46041176,150.2,150.19,0.1]
[1751992541750,201.16470649,150.2,150.19,0.1]
[1751992542351,172.46041176,150.2,150.19,0.1]
[1751992542750,207.14041176,150.2,150.19,0.1]
[1751992542934,78.29006062,150.2,150.19,0.1]
[1751992543132,79.12228432,150.2,150.19,0.1]
[1751992543330,79.12228432,150.2,150.18,0.03]
[1751992543528,79.12228432,150.2,150.08,5.95570527]
[1751992543529,147.39999999,150.17,150.09,1.6643]
[1751992543745,5.95570527,150.15,150.1,5.95570527]
[1751992543966,0.83255628,150.14,150.1,5.95570527]
[1751992544155,0.83255628,150.14,150.09,1.6643]
[1751992544331,8.25042305,150.14,150.05,8.25841618]
[1751992544531,26.0,150.11,150.05,1.5941]
[1751992544730,0.83277814,150.1,150.08,5.95570527]
[1751992545130,26.0,150.11,150.09,5.95570527]
[1751992545336,0.83266719,150.12,150.1,5.95570527]
[1751992545555,0.83266719,150.12,150.05,8.25851099]
[1751992545739,0.83261173,150.13,150.08,5.95570527]
[1751992546071,8.24734426,150.17,150.12,7.51640527]
[1751992546237,20.86234295,150.17,150.12,7.51640527]
[1751992546552,7.41495431,150.16,150.13,5.95570527]
[1751992546747,0.83250083,150.15,150.13,5.95570527]
[1751992546952,0.83238995,150.17,150.14,5.95570527]
[1751992547134,0.83233453,150.18,150.16,5.95570527]
[1751992547337,0.83233453,150.18,150.14,1.6073]
[1751992547538,0.83227911,150.19,150.17,5.95570527]
[1751992547751,0.83227911,150.19,150.18,5.95570527]
[1751992547958,14.20633819,150.22,150.18,5.95570527]
[1751992548257,26.0,150.19,150.17,5.95570527]
[1751992548442,0.83233453,150.18,150.17,5.95570527]
[1751992548841,26.0,150.13,150.09,5.95570527]
[1751992549061,26.0,150.11,150.1,8.95885186]
[1751992549233,26.0,150.13,150.1,8.95885186]
[1751992549546,0.83255628,150.14,150.12,8.95885186]
[1751992549746,26.83255628,150.14,150.13,8.95885186]
[1751992550135,0.83255628,150.14,150.13,8.95885186]
[1751992550332,52.02700313,150.22,150.13,8.95885186]
[1751992550558,26.0,150.18,150.17,8.95885186]
[1751992550758,7.41603837,150.18,150.17,8.95885186]
[1751992551062,7.49017541,150.2,150.17,8.95885186]
[1751992551259,7.41740593,150.19,150.12,8.95885186]
[1751992551457,0.8322237,150.2,150.18,8.95885186]
[1751992551657,6.6569032,150.22,150.19,8.95885186]
[1751992551960,0.83216829,150.21,150.19,8.95885186]
[1751992552159,8.25017894,150.21,150.19,8.95885186]
[1751992552345,26.0,150.2,150.18,8.95885186]
[1751992552547,26.83227911,150.19,150.18,8.95885186]
[1751992552747,26.83227911,150.19,150.17,8.95885186]
[1751992552951,33.49075296,150.19,150.16,8.95885186]
[1751992553547,26.0,150.15,150.1,7.9313]
[1751992553747,0.83255628,150.14,150.11,8.95885186]
[1751992554149,26.0,150.13,150.12,8.95885186]
[1751992554455,0.83250083,150.15,150.1,8.31002076]
[1751992554658,8.25256721,150.17,150.14,8.95885186]
[1751992554840,8.25256721,150.17,150.16,8.95885186]
[1751992555160,147.39999999,150.18,150.16,8.95885186]
[1751992555358,154.05883697,150.18,150.17,8.95885186]
[1751992555755,154.05883697,150.18,150.13,6.1727]
[1751992555944,0.83238995,150.17,150.16,8.95885186]
[1751992556142,0.83238995,150.17,150.13,6.1727]
[1751992556342,0.83238995,150.17,150.15,8.95885186]
[1751992557166,7.4915842,150.17,150.15,8.95885186]
[1751992557555,7.4915842,150.17,150.14,8.95885186]
[1751992557867,7.4915842,150.17,150.13,6.1727]
[1751992558069,7.4915842,150.17,150.14,8.95885186]
[1751992559154,7.4915842,150.17,150.11,6.66170307]
[1751992559461,7.4915842,150.17,150.15,8.95885186]
[1751992560374,7.4915842,150.17,150.09,25.07064886]
[1751992560375,26.0,150.15,150.09,6.421]
[1751992560586,0.83255628,150.14,150.1,8.95885186]
[1751992560793,148.23255627,150.14,150.11,8.95885186]
[1751992560948,148.23255627,150.14,150.09,6.421]
[1751992560949,147.39999999,150.13,150.1,8.95885186]
[1751992561143,0.83266719,150.12,150.1,8.95885186]
[1751992561357,0.83266719,150.12,150.11,8.95885186]
[1751992561646,147.39999999,150.11,150.08,8.95885186]
[1751992561860,147.39999999,150.1,150.09,8.95885186]
[1751992562567,147.39999999,150.1,150.08,8.95885186]
[1751992563251,147.39999999,150.1,150.06,7.7017]
[1751992563474,0.83283363,150.09,150.06,10.50865186]
[1751992563647,0.83283363,150.09,150.07,8.95885186]
[1751992564544,147.39999999,150.1,150.08,8.95885186]
[1751992564870,0.83283363,150.09,150.06,10.50865186]
[1751992565070,0.83283363,150.09,150.07,8.95885186]
[1751992565264,147.39999999,150.1,150.06,1.5498]
[1751992565469,0.83283363,150.09,150.06,8.95885186]
[1751992566066,147.39999999,150.08,150.06,8.95885186]
[1751992566359,0.83294462,150.07,150.06,8.95885186]
[1751992566561,147.39999999,150.08,150.06,8.95885186]
[1751992567776,147.39999999,150.08,150.07,8.95885186]
[1751992567957,147.39999999,150.12,150.07,8.95885186]
[1751992568161,147.39999999,150.17,150.11,8.95885186]
[1751992568370,148.23244538,150.16,150.15,8.95885186]
[1751992568567,147.39999999,150.16,150.09,6.3894]
[1751992568763,147.39999999,150.16,150.13,8.95885186]
[1751992569083,0.83250083,150.15,150.12,8.95885186]
[1751992569290,0.83250083,150.15,150.13,8.95885186]
[1751992569576,0.83250083,150.15,150.12,8.95885186]
[1751992569961,0.83250083,150.15,150.1,6.66222518]
[1751992570161,147.39999999,150.16,150.1,6.66222518]
[1751992570365,147.39999999,150.16,150.14,8.95885186]
[1751992570578,0.83250083,150.15,150.13,8.95885186]
[1751992570880,0.83250083,150.15,150.12,8.95885186]
[1751992571276,0.83250083,150.15,150.13,8.95885186]
[1751992572678,7.49259232,150.15,150.1,6.66222518]
[1751992572984,16.45144418,150.15,150.11,8.95885186]
[1751992573276,7.49259232,150.15,150.11,8.95885186]
[1751992573479,147.39999999,150.16,150.14,8.95885186]
[1751992573985,147.39999999,150.16,150.13,8.95885186]
[1751992574170,154.05956733,150.16,150.13,8.95885186]
[1751992574677,147.39999999,150.15,150.13,8.95885186]
[1751992575181,147.39999999,150.19,150.14,8.95885186]
[1751992575411,0.83233453,150.18,150.16,8.95885186]
[1751992575694,147.39999999,150.19,150.17,8.95885186]
[1751992575861,0.83233453,150.18,150.14,6.66045024]
[1751992576062,0.83233453,150.18,150.15,8.95885186]
[1751992576367,0.83233453,150.18,150.14,6.66045024]
[1751992576368,7.430939,150.18,150.17,8.95885186]
[1751992576571,147.39999999,150.19,150.17,8.95885186]
[1751992577076,147.39999999,150.19,150.18,8.95885186]
[1751992577404,152.35870239,150.19,150.18,8.95885186]
[1751992577585,152.35870239,150.19,150.17,8.95885186]
[1751992577787,147.39999999,150.19,150.17,8.95885186]
[1751992578464,147.39999999,150.19,150.18,8.95885186]
[1751992578689,152.36081879,150.19,150.18,8.95885186]
[1751992579183,152.36057072,150.19,150.18,8.95885186]
[1751992580098,152.36057072,150.19,150.17,8.95885186]
[1751992580099,152.3621665,150.19,150.17,8.95885186]